bitfinex-derivatives/quotes_BTCF0:USTF0_20250325
["timestamp","ask_amount","ask_price","bid_price","bid_amount"]
[1742918335185,0.1706156,87908.0,87907.0,0.1137417]
[1742918335379,0.1706156,87908.0,87907.0,0.1153017]
[1742918335880,0.1706156,87908.0,87907.0,0.1787017]
[1742918336080,0.1706156,87908.0,87907.0,0.2381017]
[1742918337379,0.1137403,87910.0,87909.0,0.1706091]
[1742918337584,0.1137403,87910.0,87909.0,0.1721291]
[1742918337784,0.1724403,87910.0,87909.0,0.1721291]
[1742918337984,0.2305403,87910.0,87909.0,0.1721291]
[1742918338483,0.2305403,87910.0,87909.0,0.00152]
[1742918338784,0.1137494,87902.0,87901.0,0.27156513]
[1742918338981,0.5865494,87902.0,87901.0,0.27308513]
[1742918339282,0.7033494,87902.0,87901.0,0.27308513]
[1742918340381,0.72793572,87902.0,87901.0,0.27308513]
[1742918340982,0.3425494,87902.0,87901.0,0.27308513]
[1742918341178,0.3425494,87902.0,87901.0,0.00152]
[1742918341379,0.1137623,87892.0,87891.0,0.1138436]
[1742918341574,0.1137623,87892.0,87891.0,0.2153636]
[1742918341781,0.2360623,87892.0,87891.0,0.2153636]
[1742918342382,0.2360623,87892.0,87891.0,0.2152836]
[1742918342687,0.2360623,87892.0,87891.0,0.2162836]
[1742918342889,0.23484919,87892.0,87891.0,0.2162836]
[1742918345287,0.23484919,87892.0,87891.0,0.10252]
[1742918345474,0.23484919,87892.0,87891.0,0.1162836]
[1742918348190,0.23484919,87892.0,87891.0,0.00252]
[1742918349383,0.23707652,87892.0,87891.0,0.00252]
[1742918349586,0.23707652,87892.0,87891.0,0.00372]
[1742918350187,0.23707652,87892.0,87891.0,0.1174836]
[1742918350490,0.17767652,87892.0,87891.0,0.2174836]
[1742918350789,0.17767652,87892.0,87891.0,0.1174836]
[1742918351087,0.18561538,87892.0,87891.0,0.07372]
[1742918352088,0.24551538,87892.0,87891.0,0.07372]
[1742918354081,0.24328805,87892.0,87891.0,0.07372]
[1742918354281,0.24328805,87892.0,87891.0,0.07252]
[1742918354592,0.24551538,87892.0,87891.0,0.13322]
[1742918354787,0.24551538,87892.0,87891.0,0.19552]
[1742918355091,0.24551538,87892.0,87891.0,0.19672]
[1742918357795,0.24551538,87892.0,87891.0,0.00372]
[1742918358091,0.0568912,87877.0,87871.0,0.00045521]
[1742918358297,0.1137882,87872.0,87871.0,0.00157521]
[1742918358487,0.11490821,87872.0,87871.0,0.00157521]
[1742918358804,0.24390821,87872.0,87871.0,0.00157521]
[1742918358994,0.26927295,87872.0,87871.0,0.00157521]
[1742918359183,0.24390821,87872.0,87871.0,0.00157521]
[1742918359385,0.27719335,87872.0,87871.0,0.00157521]
[1742918359795,0.28561867,87872.0,87871.0,0.00157521]
[1742918359984,0.28561867,87872.0,87871.0,0.00557521]
[1742918360186,0.27438843,87872.0,87871.0,0.01157521]
[1742918361187,0.26027239,87872.0,87871.0,0.07297521]
[1742918361587,0.29964187,87872.0,87871.0,0.07297521]
[1742918361980,0.32367015,87872.0,87871.0,0.07297521]
[1742918362182,0.28430067,87872.0,87871.0,0.07297521]
[1742918362782,0.28430067,87872.0,87871.0,0.01157521]
[1742918363396,0.28430067,87872.0,87871.0,0.01045521]
[1742918363993,0.1137985,87864.0,87863.0,0.00017069]
[1742918364294,0.1138024,87861.0,87860.0,0.0608]
[1742918364488,0.1144824,87861.0,87860.0,0.0608]
[1742918364687,0.12242126,87861.0,87860.0,0.0608]
[1742918366093,0.12242126,87861.0,87860.0,0.0668]
[1742918366300,0.12242126,87861.0,87860.0,0.0708]
[1742918366886,0.113805,87859.0,87855.0,0.00045529]
[1742918367088,0.113805,87859.0,87852.0,8e-08]
[1742918367089,0.1138128,87853.0,87852.0,8e-08]
[1742918367296,0.5869728,87853.0,87852.0,8e-08]
[1742918367494,0.62580163,87853.0,87852.0,8e-08]
[1742918367803,0.62579426,87853.0,87852.0,8e-08]
[1742918367996,0.74959426,87853.0,87852.0,8e-08]
[1742918368298,0.74335793,87853.0,87852.0,8e-08]
[1742918368698,0.71862423,87853.0,87852.0,8e-08]
[1742918368887,0.72062423,87853.0,87852.0,8e-08]
[1742918369089,0.7127728,87853.0,87852.0,8e-08]
[1742918369286,0.7167728,87853.0,87852.0,8e-08]
[1742918370088,0.7187728,87853.0,87852.0,8e-08]
[1742918370286,0.7167728,87853.0,87852.0,8e-08]
[1742918371399,0.7168928,87853.0,87852.0,8e-08]
[1742918371793,0.7158928,87853.0,87852.0,8e-08]
[1742918372300,0.6040528,87853.0,87852.0,8e-08]
[1742918372502,0.6542928,87853.0,87852.0,8e-08]
[1742918372693,0.4802528,87853.0,87852.0,0.09108008]
[1742918372889,0.4802528,87853.0,87852.0,0.09116008]
[1742918373089,0.4802528,87853.0,87852.0,0.18116008]
[1742918373298,0.1194528,87853.0,87852.0,1.92607418]
[1742918373605,0.1178128,87853.0,87852.0,1.81226008]
[1742918374299,0.1178128,87853.0,87852.0,1.92607418]
[1742918374696,0.1178128,87853.0,87852.0,1.81226008]
[1742918374902,0.1178128,87853.0,87852.0,1.92607418]
[1742918375098,0.1707122,87859.0,87858.0,0.1707068]
[1742918375302,0.17179221,87859.0,87858.0,0.5518268]
[1742918376502,0.17179221,87859.0,87858.0,0.5538268]
[1742918376903,0.17179221,87859.0,87858.0,0.5558268]
[1742918377505,0.05798251,87859.0,87858.0,0.5558268]
[1742918378006,0.05798251,87859.0,87858.0,0.5548268]
[1742918378607,0.05798251,87859.0,87858.0,0.5538268]
[1742918378909,0.05798251,87859.0,87858.0,0.5548268]
[1742918379104,0.08217992,87859.0,87858.0,0.5548268]
[1742918379707,0.08109991,87859.0,87858.0,0.5548268]
[1742918380303,0.08217992,87859.0,87858.0,0.5548268]
[1742918380505,0.08109991,87859.0,87858.0,0.5548268]
[1742918381204,0.00017069,87861.0,87860.0,0.1138037]
[1742918381404,0.11397309,87861.0,87860.0,0.6349637]
[1742918381713,0.11397309,87861.0,87860.0,0.7613637]
[1742918382103,0.13807033,87861.0,87860.0,0.5013637]
[1742918382412,0.13915034,87861.0,87860.0,0.5013637]
[1742918382613,0.13915034,87861.0,87860.0,0.5033637]
[1742918382815,0.20205034,87861.0,87860.0,0.5033637]
[1742918383215,0.20205034,87861.0,87860.0,0.5063637]
[1742918383411,0.20205034,87861.0,87860.0,0.39256]
[1742918383616,0.37901034,87861.0,87860.0,0.06816]
[1742918383824,0.44351034,87861.0,87860.0,0.067]
[1742918384020,0.45760163,87861.0,87860.0,0.067]
[1742918384317,0.45760163,87861.0,87852.0,8e-08]
[1742918384318,0.1138128,87853.0,87852.0,8e-08]
[1742918384505,0.4752928,87853.0,87852.0,8e-08]
[1742918384712,0.61688242,87853.0,87852.0,8e-08]
[1742918385214,0.62670849,87853.0,87852.0,8e-08]
[1742918385714,0.62670849,87853.0,87852.0,0.00500008]
[1742918388521,0.73902849,87853.0,87852.0,0.00500008]
[1742918389711,0.73902849,87853.0,87852.0,0.00608008]
[1742918392414,0.73902849,87853.0,87852.0,0.00500008]
[1742918392811,0.7151128,87853.0,87852.0,0.00500008]
[1742918393008,0.1138258,87843.0,87842.0,8e-05]
[1742918393217,0.58754581,87843.0,87842.0,8e-05]
[1742918393423,0.113827,87842.0,87841.0,0.0621]
[1742918393716,0.114467,87842.0,87841.0,0.0621]
[1742918394019,0.25457788,87842.0,87841.0,0.0621]
[1742918394515,0.240467,87842.0,87841.0,0.0621]
[1742918394711,0.25457788,87842.0,87841.0,0.0621]
[1742918394913,0.0569161,87838.0,87833.0,0.00017069]
[1742918395221,0.0569161,87838.0,87833.0,0.00125069]
[1742918395222,0.1138374,87834.0,87833.0,0.00125069]
[1742918395413,0.22715741,87834.0,87833.0,0.00017069]
[1742918395720,0.34515741,87834.0,87833.0,0.00017069]
[1742918397515,0.36777229,87834.0,87833.0,0.00017069]
[1742918398213,0.34515741,87834.0,87833.0,0.00017069]
[1742918398619,0.34615741,87834.0,87833.0,0.00017069]
[1742918401416,0.36023522,87834.0,87833.0,0.00017069]
[1742918401615,0.24799514,87834.0,87833.0,0.10017069]
[1742918401817,0.28661741,87834.0,87833.0,0.35017069]
[1742918402021,0.28661741,87834.0,87833.0,0.35133069]
[1742918402227,0.34551741,87834.0,87833.0,0.35133069]
[1742918404033,0.23351741,87834.0,87833.0,0.35133069]
[1742918404325,0.17461741,87834.0,87833.0,0.35133069]
[1742918405324,0.23481741,87834.0,87833.0,0.46516939]
[1742918405631,0.17461741,87834.0,87833.0,0.46516939]
[1742918405829,0.06078001,87834.0,87833.0,0.46516939]
[1742918406015,0.001,87834.0,87833.0,0.59206939]
[1742918406217,0.00208001,87834.0,87833.0,0.49206939]
[1742918406422,0.00208001,87834.0,87833.0,2.21206939]
[1742918406629,0.001,87834.0,87833.0,2.21206939]
[1742918407037,0.001,87834.0,87833.0,2.09306939]
[1742918407219,0.0601,87841.0,87835.0,0.1138361]
[1742918407420,0.01447718,87848.0,87841.0,0.0569136]
[1742918407421,0.0004,87848.0,87841.0,0.0569136]
[1742918407624,0.0004,87848.0,87847.0,0.4746206]
[1742918407919,0.0004,87848.0,87847.0,0.5846206]
[1742918408128,0.0004,87848.0,87847.0,0.9033206]
[1742918408330,0.0004,87848.0,87847.0,2.4673406]
[1742918408529,0.01408487,87863.0,87860.0,0.1138037]
[1742918408734,0.11492241,87861.0,87860.0,0.3749237]
[1742918408936,0.11492241,87861.0,87860.0,0.4436237]
[1742918409734,0.13635427,87861.0,87860.0,0.2465237]
[1742918410324,0.13635427,87861.0,87860.0,0.4365237]
[1742918410525,0.13635427,87861.0,87860.0,0.6375237]
[1742918411035,0.20105427,87861.0,87860.0,0.52372]
[1742918411234,0.20105427,87861.0,87860.0,0.52272]
[1742918412238,0.20105427,87861.0,87860.0,0.6365237]
[1742918413336,0.13635427,87861.0,87860.0,0.6365237]
[1742918414327,0.13735427,87861.0,87860.0,0.6365237]
[1742918414934,0.13635427,87861.0,87860.0,0.6365237]
[1742918415841,0.13735427,87861.0,87860.0,0.6365237]
[1742918416030,0.00212001,87861.0,87860.0,0.6365237]
[1742918416237,0.0004,87864.0,87863.0,0.1137998]
[1742918416439,0.0004,87864.0,87863.0,0.9052398]
[1742918416640,0.02178683,87868.0,87867.0,0.1137947]
[1742918416843,0.0004,87880.0,87877.0,0.1137817]
[1742918417039,0.12850412,87878.0,87877.0,1.1659817]
[1742918417231,0.01472372,87878.0,87877.0,1.1659817]
[1742918417440,0.01408372,87878.0,87877.0,1.1659817]
[1742918417745,0.01408372,87878.0,87877.0,1.2999817]
[1742918418643,0.01808372,87878.0,87877.0,1.2999817]
[1742918419634,0.02208372,87878.0,87877.0,1.2999817]
[1742918420045,0.13586412,87878.0,87877.0,0.8254]
[1742918420241,0.13586412,87878.0,87877.0,0.4614]
[1742918420242,0.13726413,87878.0,87877.0,0.4614]
[1742918420636,0.32876413,87878.0,87877.0,0.4614]
[1742918422136,0.32876413,87878.0,87877.0,0.0014]
[1742918422337,0.113796,87866.0,87865.0,8e-05]
[1742918422544,0.588276,87866.0,87865.0,0.52156]
[1742918422932,0.588276,87866.0,87865.0,0.7453573]
[1742918423242,0.650476,87866.0,87865.0,0.8133573]
[1742918423442,0.650476,87866.0,87865.0,0.76356]
[1742918423640,0.715276,87866.0,87865.0,0.76356]
[1742918424546,0.715276,87866.0,87865.0,0.69556]
[1742918424950,0.716276,87866.0,87865.0,0.69548]
[1742918427552,1.144376,87866.0,87865.0,0.52148]
[1742918430749,1.144296,87866.0,87865.0,0.52148]
[1742918432155,0.06568,87866.0,87865.0,0.7352773]
[1742918432344,0.06568,87866.0,87865.0,0.6352773]
[1742918432545,0.06568,87866.0,87865.0,0.8754773]
[1742918432848,0.179476,87866.0,87865.0,2.2654773]
[1742918433044,0.177996,87866.0,87865.0,2.2654773]
[1742918433841,0.177996,87866.0,87865.0,0.65168]
[1742918434141,0.31229601,87866.0,87865.0,0.58628]
[1742918434347,0.31229601,87866.0,87865.0,0.52148]
[1742918437942,0.1138063,87858.0,87857.0,8e-05]
[1742918438143,0.1138089,87856.0,87855.0,0.00045529]
[1742918438450,0.1138128,87853.0,87844.0,0.26985698]
[1742918438747,0.1144528,87853.0,87852.0,0.24017069]
[1742918438952,0.26009611,87853.0,87852.0,0.24017069]
[1742918439347,0.37281611,87853.0,87852.0,0.48017069]
[1742918439550,0.37281611,87853.0,87852.0,0.59502479]
[1742918439551,0.30241611,87853.0,87852.0,0.59502479]
[1742918439742,0.30241611,87853.0,87852.0,0.48121069]
[1742918439941,0.00858331,87853.0,87852.0,0.59502479]
[1742918440242,0.00858331,87853.0,87852.0,2.16092479]
[1742918440448,0.12175611,87853.0,87852.0,2.33572479]
[1742918440647,0.12375611,87853.0,87852.0,2.22191069]
[1742918440853,0.1158128,87853.0,87852.0,2.22191069]
[1742918441051,0.11677281,87853.0,87852.0,2.33572479]
[1742918441452,0.12077281,87853.0,87852.0,2.33572479]
[1742918441856,0.00696001,87853.0,87852.0,0.83572479]
[1742918442046,0.11477281,87853.0,87852.0,0.83572479]
[1742918442246,0.11577281,87853.0,87852.0,0.83572479]
[1742918442453,0.11577281,87853.0,87852.0,2.33572479]
[1742918442660,0.1148128,87853.0,87852.0,2.33572479]
[1742918443048,0.056904,87857.0,87853.0,0.1138115]
[1742918443353,0.0140992,87871.0,87863.0,0.1137998]
[1742918443553,0.00136001,87864.0,87863.0,0.8947598]
[1742918443752,0.0004,87864.0,87863.0,1.0961598]
[1742918444059,0.01408372,87878.0,87877.0,0.1137817]
[1742918444243,0.12882413,87878.0,87877.0,0.8537817]
[1742918444446,0.12882413,87878.0,87877.0,0.8547417]
[1742918444643,0.01504373,87878.0,87877.0,0.7447417]
[1742918444952,0.1707403,87884.0,87883.0,0.1137739]
[1742918445159,0.17190031,87884.0,87883.0,0.5950139]
[1742918445955,0.02243602,87884.0,87883.0,0.9405139]
[1742918446158,0.13620862,87884.0,87883.0,0.9405139]
[1742918446354,0.11501261,87884.0,87883.0,0.7305139]
[1742918446551,0.12501261,87884.0,87883.0,0.7305139]
[1742918447162,0.12501261,87884.0,87883.0,0.8405139]
[1742918447361,0.13289079,87884.0,87883.0,0.7305139]
[1742918447665,0.13289079,87884.0,87883.0,0.8205139]
[1742918447851,0.13289079,87884.0,87883.0,0.8305139]
[1742918447852,0.01911819,87884.0,87883.0,0.8305139]
[1742918448053,0.01787818,87884.0,87883.0,0.8305139]
[1742918448259,8e-05,87889.0,87888.0,0.1137675]
[1742918448451,8e-05,87893.0,87891.0,0.1137636]
[1742918448760,0.00048,87896.0,87891.0,0.9050036]
[1742918448761,0.0004,87896.0,87891.0,0.9050036]
[1742918449256,8e-05,87898.0,87895.0,0.1137584]
[1742918449561,0.113834,87903.0,87902.0,0.0568734]
[1742918449861,0.11435401,87903.0,87902.0,0.5781134]
[1742918450259,0.00060001,87903.0,87902.0,0.5781134]
[1742918450454,0.07098,87905.0,87904.0,0.1137468]
[1742918450653,0.00132001,87905.0,87904.0,0.8449868]
[1742918451052,0.11498551,87905.0,87904.0,0.8449868]
[1742918452063,0.1137455,87905.0,87904.0,0.8449868]
[1742918452764,0.1818455,87905.0,87904.0,0.8449868]
[1742918453157,0.00048,87912.0,87911.0,0.1137377]
[1742918453365,0.00048,87912.0,87911.0,0.9857777]
[1742918454066,0.0004,87912.0,87911.0,0.9857777]
[1742918454266,0.1141364,87912.0,87911.0,0.9857777]
[1742918454766,0.11537641,87912.0,87911.0,0.9857777]
[1742918454964,0.11737641,87912.0,87911.0,0.9857777]
[1742918455365,0.00364001,87912.0,87911.0,0.9857777]
[1742918455564,0.0024,87912.0,87911.0,0.9857777]
[1742918455765,0.1161364,87912.0,87911.0,0.51124]
[1742918455960,0.11673641,87912.0,87911.0,0.51124]
[1742918456155,0.47753641,87912.0,87911.0,0.51124]
[1742918456560,0.54893641,87912.0,87911.0,0.51124]
[1742918458764,0.66217641,87912.0,87911.0,0.51124]
[1742918459370,0.66321641,87912.0,87911.0,0.51124]
[1742918461967,0.66327596,87912.0,87911.0,0.51124]
[1742918463771,0.66223596,87912.0,87911.0,0.51124]
[1742918465071,0.66327596,87912.0,87911.0,0.51124]
[1742918465661,0.1137545,87898.0,87897.0,0.00016]
[1742918465866,0.58811451,87898.0,87897.0,0.00104]
[1742918466070,0.58811451,87898.0,87897.0,0.00016]
[1742918466672,0.71931451,87898.0,87897.0,0.00016]
[1742918466858,0.0568814,87892.0,87888.0,8e-05]
[1742918467059,0.4745662,87889.0,87888.0,0.24008]
[1742918467266,0.47552621,87889.0,87888.0,0.30636]
[1742918467768,0.47552621,87889.0,87888.0,0.30628]
[1742918468359,0.49302432,87889.0,87888.0,0.30628]
[1742918468964,0.49302432,87889.0,87888.0,0.24088]
[1742918469263,0.60610432,87889.0,87888.0,0.24088]
[1742918469570,0.60606432,87889.0,87888.0,0.24088]
[1742918471274,0.60606432,87889.0,87876.0,0.0718]
[1742918471275,0.64229812,87889.0,87870.0,8e-05]
[1742918471573,0.64229812,87889.0,87863.0,0.04552]
[1742918471574,0.1137985,87864.0,87863.0,0.04552]
[1742918471771,0.58823851,87864.0,87863.0,0.04552]
[1742918472180,0.58823851,87864.0,87863.0,0.00068]
[1742918472374,0.1138063,87858.0,87857.0,0.20395698]
[1742918472577,0.11440631,87858.0,87857.0,0.46455698]
[1742918473081,0.12277873,87858.0,87857.0,0.46455698]
[1742918473277,0.26417873,87858.0,87857.0,0.46455698]
[1742918473483,0.28100992,87858.0,87857.0,0.46455698]
[1742918474184,0.28100992,87858.0,87857.0,0.65555698]
[1742918474386,0.2441575,87858.0,87857.0,0.76936458]
[1742918474784,0.00060001,87858.0,87857.0,0.5654076]
[1742918475182,0.07,87876.0,87857.0,0.6516]
[1742918475375,8e-05,87884.0,87871.0,0.1137895]
[1742918475580,0.00859699,87886.0,87885.0,0.1137714]
[1742918475776,0.00072,87886.0,87885.0,0.6337714]
[1742918475979,0.00064,87886.0,87885.0,0.6345714]
[1742918476184,0.00064,87886.0,87885.0,2.1345714]
[1742918476386,0.07,87889.0,87888.0,0.1137675]
[1742918476584,0.07,87889.0,87888.0,0.6246075]
[1742918476779,0.07060001,87889.0,87888.0,0.6246075]
[1742918477383,0.08807375,87889.0,87888.0,0.6246075]
[1742918477585,0.08747374,87889.0,87888.0,0.6246075]
[1742918477788,0.08947374,87889.0,87888.0,0.6246075]
[1742918478194,0.09031374,87889.0,87888.0,0.6246075]
[1742918478498,0.00284,87889.0,87888.0,0.6246075]
[1742918478900,0.00384,87889.0,87888.0,0.6246075]
[1742918479099,0.00384,87889.0,87888.0,0.9854075]
[1742918479308,0.003,87889.0,87888.0,0.9854075]
[1742918479503,0.0004,87896.0,87890.0,0.0568821]
[1742918479700,0.0004,87896.0,87895.0,0.1137584]
[1742918479900,0.0004,87896.0,87895.0,0.6545984]
[1742918480797,0.0014,87896.0,87895.0,0.6545984]
[1742918485304,0.0014,87896.0,87895.0,0.7242984]
[1742918485511,1e-07,87896.0,87895.0,0.7242984]
[1742918485702,9e-08,87897.0,87896.0,0.1137571]
[1742918485901,9e-08,87897.0,87896.0,0.6245571]
[1742918486097,9e-08,87897.0,87896.0,0.7545571]
[1742918486497,9e-08,87897.0,87896.0,1.1153571]
[1742918487210,8e-05,87907.0,87906.0,0.1137442]
[1742918487410,0.00157955,87912.0,87911.0,0.1137377]
[1742918487616,0.01925299,87912.0,87911.0,0.6545377]
[1742918487904,0.00149955,87912.0,87911.0,0.6545377]
[1742918488107,0.00237955,87912.0,87911.0,0.6545377]
[1742918488698,0.069,87922.0,87921.0,0.1137248]
[1742918488898,0.07004001,87922.0,87921.0,0.6047648]
[1742918489604,0.07004001,87922.0,87921.0,0.7401648]
[1742918490814,0.08724822,87922.0,87921.0,0.7401648]
[1742918491009,0.15894822,87922.0,87921.0,0.7401648]
[1742918494910,2e-08,87924.0,87923.0,0.1137222]
[1742918495101,2e-08,87924.0,87923.0,0.6651222]
[1742918495307,0.3608,87925.0,87924.0,0.1137209]
[1742918495507,0.0004,87928.0,87927.0,0.113717]
[1742918495709,0.0004,87928.0,87927.0,0.625517]
[1742918495903,0.0004,87928.0,87927.0,0.762317]
[1742918496112,0.0004,87960.0,87930.0,0.1137131]
[1742918496313,0.11268,87940.0,87939.0,0.1137015]
[1742918496513,0.1126,87940.0,87939.0,0.6055015]
[1742918496909,0.1126,87940.0,87939.0,0.7423015]
[1742918497522,0.0705,87943.0,87941.0,0.1136989]
[1742918497822,0.0705,87943.0,87942.0,0.1136976]
[1742918498015,0.0705,87943.0,87942.0,0.7322976]
[1742918498208,0.0704,87943.0,87942.0,0.7322976]
[1742918498410,0.05472942,87945.0,87944.0,0.113695]
[1742918498613,0.3608,87968.0,87944.0,0.5786868]
[1742918498817,0.3608,87968.0,87954.0,0.0568407]
[1742918499016,0.48181212,87968.0,87967.0,0.1136653]
[1742918499214,0.47332,87968.0,87967.0,0.5654653]
[1742918499818,0.49000988,87968.0,87967.0,0.5654653]
[1742918500124,0.48992988,87968.0,87967.0,0.5654653]
[1742918500616,0.49016988,87968.0,87967.0,0.5654653]
[1742918500819,0.60383388,87968.0,87967.0,0.1154653]
[1742918501016,0.170516,87960.0,87956.0,0.0568393]
[1742918501218,0.170516,87960.0,87959.0,0.1136716]
[1742918501219,0.0581178,87960.0,87959.0,0.1136716]
[1742918501406,0.4176378,87960.0,87959.0,0.2449516]
[1742918501612,0.41823781,87960.0,87959.0,0.2449516]
[1742918501823,0.41823781,87960.0,87959.0,0.02078]
[1742918502028,0.1136847,87952.0,87935.0,0.00045488]
[1742918502323,0.1136931,87947.0,87946.0,0.0568456]
[1742918502518,0.1199809,87947.0,87946.0,0.1368456]
[1742918502721,0.2329409,87947.0,87946.0,0.1368456]
[1742918503114,0.7074384,87947.0,87946.0,0.08]
[1742918503312,0.72151841,87947.0,87946.0,0.08128]
[1742918503512,0.72151841,87947.0,87946.0,0.08]
[1742918503713,0.7074384,87947.0,87946.0,0.08132]
[1742918504112,0.72151935,87947.0,87946.0,0.1950124]
[1742918504320,0.7807984,87947.0,87946.0,0.1950124]
[1742918504521,0.7807984,87947.0,87946.0,0.08132]
[1742918504825,0.7807984,87947.0,87946.0,0.08]
[1742918505131,0.7807984,87947.0,87946.0,0.08128]
[1742918505428,0.80397084,87947.0,87946.0,0.08128]
[1742918505819,0.95397084,87947.0,87946.0,0.08]
[1742918506030,0.9307984,87947.0,87946.0,0.08]
[1742918506723,0.7807984,87947.0,87946.0,0.08]
[1742918507121,0.7807984,87947.0,87946.0,0.08128]
[1742918507317,0.77511061,87947.0,87946.0,0.08]
[1742918507518,0.78079899,87947.0,87946.0,0.08]
[1742918507720,0.77511061,87947.0,87946.0,0.08]
[1742918507921,0.78079899,87947.0,87946.0,0.08]
[1742918508817,0.1137015,87939.0,87938.0,0.00017059]
[1742918509017,0.1137235,87923.0,87922.0,0.1137234]
[1742918509225,0.59353189,87923.0,87922.0,0.1150034]
[1742918509423,0.73183189,87923.0,87922.0,0.1150034]
[1742918509820,0.73183189,87923.0,87922.0,0.00128]
[1742918510530,0.7560137,87923.0,87922.0,0.00128]
[1742918510933,0.1137248,87922.0,87921.0,0.1137242]
[1742918511235,0.14487624,87922.0,87921.0,0.1150042]
[1742918511526,0.30589106,87922.0,87921.0,0.00128]
[1742918511832,0.1137261,87920.0,87919.0,0.00045496]
[1742918512029,0.12874081,87920.0,87919.0,0.22418236]
[1742918512219,0.12874081,87920.0,87919.0,0.11546236]
[1742918512419,0.12874081,87920.0,87919.0,0.22546236]
[1742918512825,0.1366739,87920.0,87919.0,0.22546236]
[1742918513129,0.1366739,87920.0,87919.0,0.22418236]
[1742918513732,0.1366739,87920.0,87919.0,0.11045496]
[1742918514132,0.1366739,87920.0,87919.0,0.22418236]
[1742918514329,0.1366739,87920.0,87919.0,0.11045496]
[1742918514535,0.1366739,87920.0,87919.0,0.07489227]
[1742918514733,0.1137325,87915.0,87914.0,0.00025059]
[1742918514928,0.48150213,87915.0,87914.0,0.00145059]
[1742918515334,0.50568394,87915.0,87914.0,0.00145059]
[1742918515533,0.64808394,87915.0,87914.0,0.00145059]
[1742918515928,0.67187691,87915.0,87914.0,0.00145059]
[1742918516433,0.1137416,87908.0,87907.0,0.0455]
[1742918516738,0.1137429,87907.0,87906.0,0.1138241]
[1742918516936,0.1137455,87905.0,87904.0,0.1823459]
[1742918517129,0.12035513,87905.0,87904.0,0.4632659]
[1742918517438,0.12035626,87905.0,87904.0,0.00092]
[1742918517622,0.1137714,87885.0,87884.0,0.1391]
[1742918517828,0.59346216,87885.0,87884.0,0.3735116]
[1742918518028,0.47965077,87885.0,87884.0,0.3735116]
[1742918518435,0.48750997,87885.0,87884.0,0.3735116]
[1742918518936,0.48750997,87885.0,87884.0,0.3775116]
[1742918519138,0.48750997,87885.0,87884.0,0.3815116]
[1742918519339,0.47965077,87885.0,87884.0,0.3815116]
[1742918519539,0.49139126,87885.0,87884.0,0.3815116]
[1742918519730,0.49708288,87885.0,87884.0,0.3815116]
[1742918519929,0.51118095,87885.0,87884.0,0.3815116]
[1742918520938,0.62495235,87885.0,87884.0,0.3815116]
[1742918521136,0.61085428,87885.0,87884.0,0.3815116]
[1742918521328,0.61085435,87885.0,87884.0,0.3815116]
[1742918521740,0.62494823,87885.0,87884.0,0.3815116]
[1742918522141,0.61870599,87885.0,87884.0,0.3815116]
[1742918522532,0.60516266,87885.0,87884.0,0.3815116]
[1742918522733,0.61085436,87885.0,87884.0,0.3815116]
[1742918523138,0.67905436,87885.0,87884.0,0.3815116]
[1742918523842,0.67905437,87885.0,87884.0,0.3815116]
[1742918525539,0.61085437,87885.0,87884.0,0.3815116]
[1742918525837,0.6108544,87885.0,87884.0,0.3815116]
[1742918528236,0.384523,87885.0,87884.0,0.3815116]
[1742918528739,0.82637059,87893.0,87892.0,0.1137623]
[1742918528944,0.93937059,87893.0,87892.0,0.6037623]
[1742918529243,0.93937059,87893.0,87892.0,0.6718623]
[1742918529438,1.08255926,87893.0,87892.0,0.6718623]
[1742918529644,1.08255926,87893.0,87892.0,0.5581]
[1742918529842,1.51165926,87893.0,87892.0,0.5581]
[1742918530042,1.60567562,87893.0,87892.0,0.5581]
[1742918530442,1.60567562,87893.0,87892.0,0.4908]
[1742918530740,0.1137998,87863.0,87862.0,8e-05]
[1742918530945,0.2265998,87863.0,87862.0,0.15444]
[1742918531144,0.11276001,87863.0,87862.0,0.15444]
[1742918531447,0.12060621,87863.0,87862.0,0.15444]
[1742918531637,0.23440601,87863.0,87862.0,0.22194]
[1742918532037,0.25544079,87863.0,87862.0,0.22194]
[1742918532443,0.14164099,87863.0,87862.0,0.22194]
[1742918532856,0.13379479,87863.0,87862.0,0.22694]
[1742918533042,0.13379479,87863.0,87862.0,0.48694]
[1742918533638,0.24759459,87863.0,87862.0,0.49294]
[1742918533842,0.24759459,87863.0,87862.0,0.30504]
[1742918534251,0.13379479,87863.0,87862.0,0.30204]
[1742918534756,0.13379479,87863.0,87862.0,0.36974]
[1742918535155,0.24759459,87863.0,87862.0,0.64974]
[1742918535649,0.24759459,87863.0,87862.0,0.36974]
[1742918535843,0.25624065,87863.0,87862.0,0.60974]
[1742918536251,0.14244085,87863.0,87862.0,0.60974]
[1742918536646,0.1481338,87863.0,87862.0,0.60974]
[1742918536949,0.1481338,87863.0,87862.0,0.36974]
[1742918537340,0.2619336,87863.0,87862.0,0.36974]
[1742918538546,0.25624065,87863.0,87862.0,0.36974]
[1742918538752,0.2619336,87863.0,87862.0,0.36974]
[1742918539057,0.2619336,87863.0,87862.0,0.25594]
[1742918539257,0.2619336,87863.0,87862.0,0.11634]
[1742918539445,0.1138089,87856.0,87855.0,0.00045529]
[1742918539646,0.48098185,87856.0,87855.0,0.22113529]
[1742918539947,0.49819655,87856.0,87855.0,0.14996111]
[1742918540250,0.54783455,87856.0,87855.0,0.08590431]
[1742918540455,0.71357813,87856.0,87855.0,0.15590431]
[1742918540641,0.7135776,87856.0,87855.0,0.15590431]
[1742918540841,0.71357976,87856.0,87855.0,0.15590431]
[1742918541044,0.71357976,87856.0,87855.0,0.15522431]
[1742918541045,0.68062288,87856.0,87855.0,0.15522431]
[1742918541249,0.6563793,87856.0,87855.0,0.15782431]
[1742918542449,0.6563793,87856.0,87855.0,0.27363451]
[1742918542661,0.61018775,87856.0,87855.0,0.34163451]
[1742918542851,0.62562016,87856.0,87855.0,0.34163451]
[1742918543158,0.73790016,87856.0,87855.0,0.34163451]
[1742918543657,0.71389171,87856.0,87855.0,0.34163451]
[1742918544059,0.7378503,87856.0,87855.0,0.22782431]
[1742918544250,0.7378503,87856.0,87855.0,0.15982431]
[1742918544451,0.7378503,87856.0,87855.0,0.15922431]
[1742918544858,0.7378503,87856.0,87855.0,0.11936613]
[1742918545055,0.78191805,87856.0,87832.0,0.27138492]
[1742918545358,0.4746335,87837.0,87836.0,0.0006]
[1742918545552,0.4746335,87837.0,87827.0,0.2276892]
[1742918545553,0.1138452,87828.0,87827.0,0.2276892]
[1742918545753,0.23266047,87828.0,87827.0,0.6982892]
[1742918546061,0.23266047,87828.0,87827.0,0.584443]
[1742918546256,0.25410276,87828.0,87827.0,0.584443]
[1742918546457,0.39560276,87828.0,87827.0,0.584443]
[1742918546654,0.40347487,87828.0,87827.0,0.584443]
[1742918547161,0.21742967,87828.0,87827.0,0.584443]